bitfinex/quotes_BTCUSD_20250602
["timestamp","ask_amount","ask_price","bid_price","bid_amount"]
[1748824960966,0.04992852,105580.0,105570.0,0.21786408]
[1748824962578,0.01894395,105570.0,105560.0,1.0008654]
[1748824962785,0.01894395,105570.0,105560.0,0.60389609]
[1748824962786,0.01894342,105570.0,105560.0,0.60389609]
[1748824962983,0.02841544,105570.0,105560.0,0.60389609]
[1748824963316,0.01894342,105570.0,105560.0,0.60389609]
[1748824963625,0.02841535,105570.0,105560.0,0.60389609]
[1748824963767,0.02841535,105570.0,105560.0,0.60589609]
[1748824964426,0.01894342,105570.0,105560.0,0.60589609]
[1748824964923,0.01894342,105570.0,105560.0,0.60789609]
[1748824965153,0.03788746,105570.0,105560.0,0.61736946]
[1748824965355,0.02841535,105570.0,105560.0,0.62684211]
[1748824965485,0.03788737,105570.0,105560.0,0.2343879]
[1748824965686,0.03788737,105570.0,105560.0,0.54046055]
[1748824966265,0.04735948,105570.0,105560.0,0.54046055]
[1748824967604,0.01894333,105570.0,105560.0,0.54046055]
[1748824967780,0.02555658,105580.0,105570.0,0.21786381]
[1748824967987,0.03837015,105580.0,105570.0,0.2178639]
[1748824968181,0.03837006,105580.0,105570.0,0.22733565]
[1748824968588,0.04784146,105580.0,105570.0,0.22733565]
[1748824968811,0.00995658,105580.0,105570.0,0.22733565]
[1748824968999,0.00048581,105580.0,105570.0,0.35478995]
[1748824969170,0.00995658,105580.0,105570.0,0.35478995]
[1748824969373,0.01942762,105580.0,105570.0,0.33958995]
[1748824969629,0.21832874,105580.0,105570.0,0.20839206]
[1748824969829,0.04429893,105580.0,105570.0,0.22733565]
[1748824970583,0.03482762,105580.0,105570.0,0.22733565]
[1748824970786,0.04429884,105580.0,105570.0,0.22733565]
[1748824971123,0.02889884,105580.0,105570.0,0.22733565]
[1748824971333,0.02889884,105580.0,105570.0,0.22733619]
[1748824971334,0.07047033,105580.0,105570.0,0.22733619]
[1748824971664,0.07047033,105580.0,105570.0,0.22733628]
[1748824971866,0.07047024,105580.0,105570.0,0.23680812]
[1748824972071,0.06099884,105580.0,105570.0,0.23680758]
[1748824972291,0.02889884,105580.0,105570.0,0.23680758]
[1748824972549,0.03837024,105580.0,105570.0,0.23680758]
[1748824972758,0.04784173,105580.0,105570.0,0.21786399]
[1748824972960,0.04784173,105580.0,105570.0,0.22733583]
[1748824973161,0.04784173,105580.0,105570.0,0.21786399]
[1748824973162,0.05457096,105580.0,105570.0,0.21786399]
[1748824973373,0.05457096,105580.0,105570.0,0.22733583]
[1748824973506,0.24400077,105580.0,105570.0,0.20839197]
[1748824974130,0.04509947,105580.0,105570.0,0.22733574]
[1748824974330,0.04509947,105580.0,105570.0,0.23680749]
[1748824975216,0.01942807,105580.0,105570.0,0.23680749]
[1748824975573,0.02889884,105580.0,105570.0,0.27173802]
[1748824976122,0.01942762,105580.0,105570.0,0.27173802]
[1748824976323,0.02889893,105580.0,105570.0,0.27173802]
[1748824976523,0.02889893,105580.0,105570.0,0.63983802]
[1748824977614,0.03837033,105580.0,105570.0,0.63036627]
[1748824977819,0.03837033,105580.0,105570.0,0.63983802]
[1748824978384,0.01942762,105580.0,105570.0,0.63983802]
[1748824978609,0.02889893,105580.0,105570.0,0.63983802]
[1748824979001,0.03837033,105580.0,105570.0,0.63983802]
[1748824979230,0.24440014,105580.0,105570.0,0.22089434]
[1748824979385,0.05497033,105580.0,105570.0,0.22089434]
[1748824980290,0.05497033,105580.0,105570.0,0.21786381]
[1748824980493,0.05497033,105580.0,105570.0,0.22089434]
[1748824981077,0.05497033,105580.0,105570.0,0.23036609]
[1748824981277,0.24440086,105580.0,105570.0,0.20195048]
[1748824981471,0.24155851,105580.0,105570.0,0.00303053]
[1748824982329,0.25609936,105580.0,105570.0,0.00303053]
[1748824982743,0.00947238,105570.0,105560.0,0.23986102]
[1748824982950,0.01894431,105570.0,105560.0,0.23038748]
[1748824983159,0.25609918,105580.0,105570.0,0.20839206]
[1748824983358,0.03836979,105580.0,105570.0,0.22089471]
[1748824983712,0.03836979,105580.0,105570.0,0.23036646]
[1748824983919,0.04784119,105580.0,105570.0,0.23036646]
[1748824984169,0.22780032,105580.0,105570.0,0.21142278]
[1748824984359,0.02889956,105580.0,105570.0,0.21142278]
[1748824984578,0.01942816,105580.0,105570.0,0.22089462]
[1748824984740,0.01942816,105580.0,105570.0,0.22733556]
[1748824984943,0.02889965,105580.0,105570.0,0.2208946]
[1748824985941,0.02889884,105580.0,105570.0,0.23036635]
[1748824986283,0.03837033,105580.0,105570.0,0.2208946]
[1748824987134,0.03837033,105580.0,105570.0,0.21142267]
[1748824987388,0.02889884,105580.0,105570.0,0.22089442]
[1748824987614,0.03837015,105580.0,105570.0,0.22089442]
[1748824988040,0.22780059,105580.0,105570.0,0.21142276]
[1748824988260,0.22780059,105580.0,105570.0,0.22089478]
[1748824988505,0.22780059,105580.0,105570.0,0.21142276]
[1748824989012,0.21832955,105580.0,105570.0,0.21142276]
[1748824989447,0.21832955,105580.0,105570.0,0.22089478]
[1748824990396,0.01942834,105580.0,105570.0,0.23036662]
[1748824990618,0.01942834,105580.0,105570.0,0.22089478]
[1748824990846,0.00995676,105580.0,105570.0,0.23036653]
[1748824991073,0.02889911,105580.0,105570.0,0.23036647]
[1748824991535,0.00995649,105580.0,105570.0,0.23036647]
[1748824991756,0.01942744,105580.0,105570.0,0.26216647]
[1748824991977,0.02889866,105580.0,105570.0,0.26216647]
[1748824992643,0.02889866,105580.0,105570.0,0.23036647]
[1748824992854,0.02889866,105580.0,105570.0,0.23036656]
[1748824992855,0.03837006,105580.0,105570.0,0.23036656]
[1748824993063,0.02889866,105580.0,105570.0,0.23983831]
[1748824993240,0.03836997,105580.0,105570.0,0.63983831]
[1748824994133,0.03836997,105580.0,105570.0,0.63036656]
[1748824994339,0.03836997,105580.0,105570.0,0.63983831]
[1748824995085,0.03836997,105580.0,105570.0,0.63036656]
[1748824995292,0.04784137,105580.0,105570.0,0.63036656]
[1748824995713,0.04784137,105580.0,105570.0,0.23036656]
[1748824996355,0.04784137,105580.0,105570.0,0.22733592]
[1748824996531,0.04784137,105580.0,105570.0,0.23036656]
[1748824996708,0.22780104,105580.0,105570.0,0.19247839]
[1748824997069,0.23332982,105580.0,105570.0,0.20195068]
[1748824997208,0.23332982,105580.0,105570.0,0.21142288]
[1748824997412,0.23332982,105580.0,105570.0,0.20195068]
[1748824997825,0.24872982,105580.0,105570.0,0.20195068]
[1748824998027,0.23925851,105580.0,105570.0,0.19247839]
[1748824998284,0.23925851,105580.0,105570.0,0.20195077]
[1748824998425,0.20885851,105580.0,105570.0,0.21142306]
[1748824998629,0.20885851,105580.0,105570.0,0.22089526]
[1748824998834,0.20885851,105580.0,105570.0,0.21142306]
[1748824999051,0.20885851,105580.0,105570.0,0.20195077]
[1748824999258,0.22385851,105580.0,105570.0,0.21142297]
[1748824999670,0.22385851,105580.0,105570.0,0.21142306]
[1748825000967,0.22385851,105580.0,105570.0,0.19247839]
[1748825001174,0.23975851,105580.0,105570.0,0.19247839]
[1748825001434,0.23028711,105580.0,105570.0,0.19247839]
[1748825001660,0.23028711,105580.0,105570.0,0.00303064]
[1748825001881,0.58482796,105580.0,105570.0,0.00303064]
[1748825002751,0.23012013,105570.0,105560.0,0.18946565]
[1748825002970,0.23012013,105570.0,105560.0,0.0030309]
[1748825004064,0.23012013,105570.0,105560.0,0.0050309]
[1748825004661,0.23012013,105570.0,105560.0,0.1964966]
[1748825004869,0.23012013,105570.0,105560.0,0.0070309]
[1748825005071,0.24900555,105570.0,105560.0,0.0070309]
[1748825005887,0.24900555,105570.0,105560.0,0.1964966]
[1748825006087,0.25847766,105570.0,105560.0,0.20596988]
[1748825006293,0.25847766,105570.0,105560.0,0.21544307]
[1748825006479,0.25847766,105570.0,105560.0,0.20596988]
[1748825006684,0.25847766,105570.0,105560.0,0.20596997]
[1748825006685,0.24257766,105570.0,105560.0,0.20596997]
[1748825007492,0.24257766,105570.0,105560.0,0.21544316]
[1748825007888,0.24257766,105570.0,105560.0,0.22491626]
[1748825008130,0.24257766,105570.0,105560.0,0.21544316]
[1748825009185,0.24257766,105570.0,105560.0,0.20596997]
[1748825009393,0.24257766,105570.0,105560.0,0.21544316]
[1748825010239,0.24257766,105570.0,105560.0,0.22491617]
[1748825010467,0.22727766,105570.0,105560.0,0.22491626]
[1748825010587,0.21780555,105570.0,105560.0,0.22491626]
[1748825010806,0.21780555,105570.0,105560.0,0.21544316]
[1748825011907,0.22727766,105570.0,105560.0,0.25711626]
[1748825012132,0.22727766,105570.0,105560.0,0.22491626]
[1748825015501,0.22727766,105570.0,105560.0,0.22491621]
[1748825016896,0.01888542,105570.0,105560.0,0.24386214]
[1748825017101,0.56339918,105580.0,105570.0,0.19891995]
[1748825017302,0.38344041,105580.0,105570.0,0.22762291]
[1748825017421,0.38344041,105580.0,105570.0,0.25259484]
[1748825017824,0.38344032,105580.0,105570.0,0.26206668]
[1748825018307,0.38344032,105580.0,105570.0,0.2715382]
[1748825018462,0.57287013,105580.0,105570.0,0.21815066]
[1748825018667,0.57287013,105580.0,105570.0,0.20195066]
[1748825019843,0.57287013,105580.0,105570.0,0.21142268]
[1748825019969,0.57287013,105580.0,105570.0,0.20195064]
[1748825020166,0.57287013,105580.0,105570.0,0.21142266]
[1748825020393,0.57287013,105580.0,105570.0,0.21142257]
[1748825020696,0.00048581,105580.0,105570.0,0.26286616]
[1748825020893,0.02889866,105580.0,105570.0,0.26286616]
[1748825021097,0.03836997,105580.0,105570.0,0.26286604]
[1748825022175,0.02889866,105580.0,105570.0,0.26286604]
[1748825022388,0.02889857,105580.0,105570.0,0.26286604]
[1748825023020,0.03836988,105580.0,105570.0,0.26286604]
[1748825024271,0.02889857,105580.0,105570.0,0.26286604]
[1748825024475,0.03836997,105580.0,105570.0,0.26286604]
[1748825024865,0.03836988,105580.0,105570.0,0.26286604]
[1748825026469,0.04784128,105580.0,105570.0,0.25339429]
[1748825026669,0.04784128,105580.0,105570.0,0.25339428]
[1748825027679,0.04784128,105580.0,105570.0,0.26286603]
[1748825028290,0.02889857,105580.0,105570.0,0.26286603]
[1748825028507,0.03836988,105580.0,105570.0,0.26286603]
[1748825030165,0.04784128,105580.0,105570.0,0.25339428]
[1748825030724,0.04784209,105580.0,105570.0,0.24392244]
[1748825031349,0.04784209,105580.0,105570.0,0.25339428]
[1748825031687,0.01942735,105580.0,105570.0,0.26286603]
[1748825032116,0.02889848,105580.0,105570.0,0.26286603]
[1748825032929,0.02889848,105580.0,105570.0,0.26286596]
[1748825033351,0.01942735,105580.0,105570.0,0.26286596]
[1748825033563,0.02889839,105580.0,105570.0,0.26286596]
[1748825033914,0.01942735,105580.0,105570.0,0.26286596]
[1748825034155,0.02889848,105580.0,105570.0,0.26286596]
[1748825034536,0.01942735,105580.0,105570.0,0.26286596]
[1748825034741,0.00995649,105580.0,105570.0,0.26286596]
[1748825034946,0.01942726,105580.0,105570.0,0.26286596]
[1748825035188,0.02889821,105580.0,105570.0,0.26286596]
[1748825035790,0.00995649,105580.0,105570.0,0.26286596]
[1748825035989,0.00048581,105580.0,105570.0,0.26286596]
[1748825036309,0.00995658,105580.0,105570.0,0.26286596]
[1748825036525,0.00048581,105580.0,105570.0,0.26286596]
[1748825036721,0.00048581,105580.0,105570.0,0.35872026]
[1748825037129,0.23442928,105580.0,105570.0,0.19247824]
[1748825037321,0.01894386,105570.0,105560.0,0.23448401]
[1748825037535,0.20839215,105570.0,105560.0,0.19249627]
[1748825037749,0.20839215,105570.0,105560.0,0.00303057]
[1748825037750,0.239033,105570.0,105560.0,0.00303057]
[1748825037964,0.255533,105570.0,105560.0,0.00303057]
[1748825038587,0.01894584,105560.0,105550.0,0.5168807]
[1748825038791,0.01894584,105560.0,105550.0,0.52635434]
[1748825039133,0.02841885,105560.0,105550.0,0.53582789]
[1748825039566,0.03789204,105560.0,105550.0,0.53582789]
[1748825039776,0.03789204,105560.0,105550.0,0.52635434]
[1748825039968,0.03789204,105560.0,105550.0,0.53035434]
[1748825040088,0.04736532,105560.0,105550.0,0.53035434]
[1748825040701,0.23683102,105560.0,105550.0,0.50193315]
[1748825040917,0.01894611,105560.0,105550.0,0.52088052]
[1748825041112,0.02866235,105560.0,105550.0,0.52088052]
[1748825042243,0.04760882,105560.0,105550.0,0.5208807]
[1748825042453,0.23707452,105560.0,105550.0,0.51140706]
[1748825042654,0.23707452,105560.0,105550.0,0.52088088]
[1748825042834,0.23707452,105560.0,105550.0,0.53035461]
[1748825043242,0.02866235,105560.0,105550.0,0.53982816]
[1748825043681,0.03813554,105560.0,105550.0,0.53982825]
[1748825043884,0.02866199,105560.0,105550.0,0.5398278]
[1748825044282,0.02866199,105560.0,105550.0,0.53679676]
[1748825044520,0.02866199,105560.0,105550.0,0.53982781]
[1748825045126,0.02866199,105560.0,105550.0,0.51140689]
[1748825045463,0.05333509,105560.0,105550.0,0.22492107]
[1748825045669,0.05333527,105560.0,105550.0,0.52084107]
[1748825045890,0.25880097,105560.0,105550.0,0.52084107]
[1748825046094,0.25880097,105560.0,105550.0,0.51136725]
[1748825046303,0.05986199,105560.0,105550.0,0.20597334]
[1748825046507,0.07880837,105560.0,105550.0,0.22492098]
[1748825046942,0.06933509,105560.0,105550.0,0.23439462]
[1748825047146,0.24932805,105560.0,105550.0,0.1965147]
[1748825047356,0.25880124,105560.0,105550.0,0.21486931]
[1748825047507,0.24280124,105560.0,105550.0,0.22434331]
[1748825047917,0.24280124,105560.0,105550.0,0.22433612]
[1748825048086,0.24280124,105560.0,105550.0,0.23381003]
[1748825048285,0.24280124,105560.0,105550.0,0.21546288]
[1748825048472,0.24280124,105560.0,105550.0,0.21930507]
[1748825048819,0.24280124,105560.0,105550.0,0.21546304]
[1748825049241,0.24280124,105560.0,105550.0,0.22033628]
[1748825049443,0.13981849,105570.0,105560.0,0.21788446]
[1748825049663,0.13981849,105570.0,105560.0,0.25211548]
[1748825049664,0.0924,105570.0,105560.0,0.25211548]
[1748825049822,0.10187167,105570.0,105560.0,0.25211548]
[1748825050205,0.40693452,105580.0,105570.0,0.20839188]
[1748825050403,0.38796474,105580.0,105570.0,0.20839188]
[1748825050637,0.39743614,105580.0,105570.0,0.20839188]
[1748825051259,0.38796528,105580.0,105570.0,0.20839206]
[1748825051468,0.38796528,105580.0,105570.0,0.21786408]
[1748825052275,0.39743677,105580.0,105570.0,0.21786408]
[1748825052479,0.39296528,105580.0,105570.0,0.21886408]
[1748825052677,0.40743677,105580.0,105570.0,0.20939206]
[1748825053098,0.64370743,105580.0,105570.0,0.19044775]
[1748825053322,0.61529413,105580.0,105570.0,0.001]
[1748825053932,0.71114843,105580.0,105570.0,0.001]
[1748825060216,0.66592237,105580.0,105570.0,0.19044775]
[1748825060429,0.67539377,105580.0,105570.0,0.001]
[1748825060644,0.67539377,105580.0,105570.0,0.19044775]
[1748825061059,0.58299377,105580.0,105570.0,0.19044775]
[1748825061512,0.67539377,105580.0,105570.0,0.19044775]
[1748825061725,0.66592264,105580.0,105570.0,0.19044775]
[1748825061890,0.66592264,105580.0,105570.0,0.19992013]
[1748825062095,0.66592264,105580.0,105570.0,0.19044775]
[1748825062304,0.66592264,105580.0,105570.0,0.19992013]
[1748825063086,0.57352264,105580.0,105570.0,0.19992013]
[1748825063287,0.66592264,105580.0,105570.0,0.19992013]
[1748825063704,0.66592264,105580.0,105570.0,0.20939224]
[1748825063898,0.66592264,105580.0,105570.0,0.20939242]
[1748825063899,0.58299377,105580.0,105570.0,0.20939242]
[1748825064106,0.02955153,105580.0,105570.0,0.26286697]
[1748825064569,0.04849325,105580.0,105570.0,0.26286697]
[1748825064701,0.05796456,105580.0,105570.0,0.26286697]
[1748825064902,0.06743605,105580.0,105570.0,0.26286697]
[1748825065131,0.25186586,105580.0,105570.0,0.26286715]
[1748825065555,0.25486586,105580.0,105570.0,0.26286715]
[1748825065835,0.24986586,105580.0,105570.0,0.26186696]
[1748825066251,0.25286586,105580.0,105570.0,0.26186696]
[1748825067405,0.06343605,105580.0,105570.0,0.26186696]
[1748825067608,0.24339518,105580.0,105570.0,0.26186696]
[1748825068461,0.23392423,105580.0,105570.0,0.26186696]
[1748825069138,0.22445319,105580.0,105570.0,0.25239503]
[1748825070430,0.22445319,105580.0,105570.0,0.24292301]
[1748825070564,0.22445319,105580.0,105570.0,0.22089521]
[1748825070977,0.22445319,105580.0,105570.0,0.23036732]
[1748825071589,0.21498188,105580.0,105570.0,0.21142301]
[1748825071799,0.21498188,105580.0,105570.0,0.22089512]
[1748825072235,0.21498188,105580.0,105570.0,0.23036705]
[1748825072463,0.21498188,105580.0,105570.0,0.26306705]
[1748825074410,0.21498188,105580.0,105570.0,0.25359512]
[1748825074610,0.21498188,105580.0,105570.0,0.25359513]
[1748825075149,0.21498188,105580.0,105570.0,0.25359522]
[1748825076713,0.21498188,105580.0,105570.0,0.26306733]
[1748825077391,0.21498188,105580.0,105570.0,0.27253926]
[1748825077590,0.21498188,105580.0,105570.0,0.26306733]
[1748825078465,0.21498188,105580.0,105570.0,0.26003673]
[1748825078714,0.21498188,105580.0,105570.0,0.27253926]
[1748825078956,0.03502329,105580.0,105570.0,0.26003673]
[1748825079179,0.2244531,105580.0,105570.0,0.26306694]
[1748825079427,0.2244531,105580.0,105570.0,0.25359492]
[1748825079636,0.2244531,105580.0,105570.0,0.25056435]
[1748825080158,0.2244531,105580.0,105570.0,0.25359492]
[1748825082034,0.2244531,105580.0,105570.0,0.26306694]
[1748825082236,0.2244531,105580.0,105570.0,0.27253887]
[1748825082446,0.2244531,105580.0,105570.0,0.26306694]
[1748825083154,0.2244531,105580.0,105570.0,0.27253887]
[1748825083363,0.2244531,105580.0,105570.0,0.22089492]
[1748825083978,0.03502275,105580.0,105570.0,0.27163869]
[1748825084218,0.04449406,105580.0,105570.0,0.27163869]
[1748825084874,0.05396546,105580.0,105570.0,0.27163869]
[1748825085109,0.24339527,105580.0,105570.0,0.26216694]
[1748825085327,0.25286676,105580.0,105570.0,0.26860785]
[1748825085543,0.25286676,105580.0,105570.0,0.2716384]
[1748825085959,0.04449406,105580.0,105570.0,0.26216638]
[1748825086491,0.04449334,105580.0,105570.0,0.26216638]
[1748825086919,0.04449325,105580.0,105570.0,0.26216638]
[1748825087327,0.04449316,105580.0,105570.0,0.26216638]
[1748825087548,0.05396438,105580.0,105570.0,0.26216638]
[1748825087994,0.04436961,105580.0,105570.0,0.26216638]
[1748825088200,0.03489839,105580.0,105570.0,0.26216638]
[1748825088422,0.04436961,105580.0,105570.0,0.26216638]
[1748825089449,0.04436952,105580.0,105570.0,0.26216629]
[1748825090773,0.00648581,105580.0,105570.0,0.35802059]
[1748825091182,0.00648581,105580.0,105570.0,0.35802042]
[1748825091591,0.00048581,105580.0,105570.0,0.36287871]
[1748825092008,0.00148581,105580.0,105570.0,0.36287871]
[1748825092423,0.00048581,105580.0,105570.0,0.65851871]
[1748825092653,0.00048581,105580.0,105570.0,0.36287871]
[1748825092843,0.00248581,105580.0,105570.0,0.65851871]
[1748825093073,0.00048581,105580.0,105570.0,0.65851871]
[1748825096136,0.00048581,105580.0,105570.0,0.65847871]
[1748825098049,0.00048581,105580.0,105570.0,0.65847859]
[1748825099436,0.00048581,105580.0,105570.0,0.6536203]
[1748825101781,0.00048581,105580.0,105570.0,0.97414442]
[1748825102584,0.00048581,105580.0,105570.0,0.65847859]
[1748825103249,0.00048581,105580.0,105570.0,0.66047859]
[1748825103837,0.00048581,105580.0,105570.0,0.66043859]
[1748825104049,0.00048581,105580.0,105570.0,0.66143859]
[1748825105041,0.00048581,105580.0,105570.0,0.66143843]
[1748825109449,0.00048581,105580.0,105570.0,0.66143844]
[1748825113526,0.00048581,105580.0,105570.0,0.36587844]
[1748825113729,0.00048581,105580.0,105570.0,0.6613185]
[1748825120794,0.00048581,105580.0,105570.0,0.6295185]
[1748825121294,0.00048581,105580.0,105570.0,0.6609185]
[1748825122447,0.00048581,105580.0,105570.0,0.3491785]
[1748825122651,0.00048581,105580.0,105570.0,0.6294385]
[1748825124679,0.00048581,105580.0,105570.0,0.6453385]
[1748825124968,0.00048581,105580.0,105570.0,0.6609385]
[1748825125163,0.00048581,105580.0,105570.0,0.67868064]
[1748825125334,0.00048581,105580.0,105570.0,0.6609385]
[1748825125513,0.00048581,105580.0,105570.0,0.67868064]
[1748825125722,0.00048581,105580.0,105570.0,0.6609385]
[1748825126367,0.00048581,105580.0,105570.0,0.3340785]
[1748825126614,0.00048581,105580.0,105570.0,0.6294385]
[1748825126805,0.00048581,105580.0,105570.0,0.64718123]
[1748825127219,0.00048581,105580.0,105570.0,0.6294385]
[1748825127587,0.00048581,105580.0,105570.0,0.64718123]
[1748825127780,0.00048581,105580.0,105570.0,0.64718257]
[1748825128595,0.00048581,105580.0,105570.0,0.6294385]
[1748825128744,0.00048581,105580.0,105570.0,0.64718258]
[1748825128946,0.00048581,105580.0,105570.0,0.66268258]
[1748825129159,0.00048581,105580.0,105570.0,0.66268295]
[1748825129593,0.00048581,105580.0,105570.0,0.66268476]
[1748825129940,0.00048581,105580.0,105570.0,0.6449385]
[1748825130187,0.00048581,105580.0,105570.0,0.66268476]
[1748825131088,0.00048581,105580.0,105570.0,0.6449385]
[1748825131288,0.00995649,105580.0,105570.0,0.66268749]
[1748825131493,0.00048581,105580.0,105570.0,0.64718749]
[1748825132495,0.00048581,105580.0,105570.0,0.64719096]
[1748825132669,0.00048581,105580.0,105570.0,0.6294385]
[1748825133095,0.01668581,105580.0,105570.0,0.31513473]
[1748825133377,0.07046997,105580.0,105570.0,0.53350411]
[1748825133595,0.07046997,105580.0,105570.0,0.23336582]
[1748825133836,0.25990059,105580.0,105570.0,0.50970214]
[1748825134034,0.25990059,105580.0,105570.0,0.51917439]
[1748825134274,0.25990059,105580.0,105570.0,0.52864623]
[1748825134777,0.25990059,105580.0,105570.0,0.52664623]
[1748825134976,0.25990059,105580.0,105570.0,0.52564623]
[1748825135280,0.25990059,105580.0,105570.0,0.54340086]
[1748825135472,0.07047069,105580.0,105570.0,0.54340086]
[1748825135665,0.07047069,105580.0,105570.0,0.55287261]
[1748825135868,0.07047069,105580.0,105570.0,0.53511801]
[1748825136084,0.26937199,105580.0,105570.0,0.51617442]
[1748825136317,0.07047069,105580.0,105570.0,0.52564617]
[1748825136511,0.07047069,105580.0,105570.0,0.54340077]
[1748825136650,0.07047069,105580.0,105570.0,0.52564617]
[1748825137643,0.07994218,105580.0,105570.0,0.52564617]
[1748825138121,0.07994218,105580.0,105570.0,0.54340212]
[1748825138500,0.26937199,105580.0,105570.0,0.51617442]
[1748825138703,0.26937199,105580.0,105570.0,0.52564626]
[1748825139365,0.06099857,105580.0,105570.0,0.53511801]
[1748825139578,0.03562744,105580.0,105570.0,0.54984387]
[1748825139788,0.00048581,105580.0,105570.0,0.53511801]
[1748825140212,0.00048581,105580.0,105570.0,0.56721801]
[1748825140468,0.00048581,105580.0,105570.0,0.56721788]
[1748825140675,0.00048581,105580.0,105570.0,0.58497333]
[1748825140890,0.00048581,105580.0,105570.0,0.66307218]
[1748825141510,0.00048581,105580.0,105570.0,0.68082766]
[1748825141939,0.00048581,105580.0,105570.0,0.68082764]
[1748825142324,0.00048581,105580.0,105570.0,0.66307218]
[1748825142536,0.00048581,105580.0,105570.0,0.68082764]
[1748825143160,0.00048581,105580.0,105570.0,0.66307218]
[1748825143362,0.00048581,105580.0,105570.0,0.68081636]
[1748825143976,0.00048581,105580.0,105570.0,0.66307217]
[1748825144192,0.00048581,105580.0,105570.0,0.25757806]
[1748825144193,0.00995658,105580.0,105570.0,0.25757806]
[1748825144408,0.05969866,105580.0,105570.0,0.55281813]
[1748825144624,0.25860041,105580.0,105570.0,0.52440263]
[1748825144776,0.25860041,105580.0,105570.0,0.54334658]
[1748825144982,0.05969965,105580.0,105570.0,0.5149308]
[1748825145188,0.05022816,105580.0,105570.0,0.22916293]
[1748825145393,0.05969956,105580.0,105570.0,0.53387477]
[1748825145603,0.25860086,105580.0,105570.0,0.02077087]
[1748825145811,0.61611417,105580.0,105570.0,0.02076769]
[1748825146008,0.61611417,105580.0,105540.0,0.21322464]
[1748825146009,0.01894728,105550.0,105540.0,0.21322464]
[1748825146237,0.02577346,105550.0,105540.0,0.61196543]
[1748825146406,0.04117346,105550.0,105540.0,0.61196543]
[1748825146626,0.2401312,105550.0,105540.0,0.29717096]
[1748825146853,0.25907947,105550.0,105540.0,0.21139713]
[1748825147007,0.05064701,105550.0,105540.0,0.2303463]
[1748825147215,0.05064701,105550.0,105540.0,0.25695621]
[1748825147527,0.05064701,105550.0,105540.0,0.24221662]
[1748825147734,0.05064701,105550.0,105540.0,0.23921622]
[1748825148156,0.05064701,105550.0,105540.0,0.2392162]
[1748825148355,0.05064701,105550.0,105540.0,0.23034654]
[1748825148587,0.05064701,105550.0,105540.0,0.2392162]
[1748825148909,0.26502576,105560.0,105550.0,0.20843156]
[1748825149102,0.26502567,105560.0,105550.0,0.20843156]
[1748825149352,0.26502567,105560.0,105550.0,0.19895765]
[1748825149765,0.26502567,105560.0,105550.0,0.21730116]
[1748825150056,0.26502567,105560.0,105550.0,0.19895765]
[1748825150263,0.26702567,105560.0,105550.0,0.20782729]
[1748825150697,0.26802567,105560.0,105550.0,0.20782729]
[1748825150897,0.26802567,105560.0,105550.0,0.21728057]
[1748825151301,0.07855997,105560.0,105550.0,0.21728057]
[1748825151504,0.07855997,105560.0,105550.0,0.20843147]
[1748825152136,0.26802567,105560.0,105550.0,0.20843156]
[1748825152597,0.00947364,105550.0,105540.0,0.20836534]
[1748825152829,0.00947364,105550.0,105540.0,0.22971355]
[1748825152830,0.07039501,105550.0,105540.0,0.22971355]
[1748825153190,0.06092155,105550.0,105540.0,0.20772714]
[1748825153353,0.06092155,105550.0,105540.0,0.22667652]
[1748825153642,0.05144701,105550.0,105540.0,0.23615097]
[1748825153870,0.00947337,105550.0,105540.0,0.23615097]
[1748825154348,0.01894701,105550.0,105540.0,0.22731496]
[1748825154569,0.02842074,105550.0,105540.0,0.23615087]
[1748825154769,0.02842074,105550.0,105540.0,0.23614738]
[1748825155355,0.02842074,105550.0,105540.0,0.22731496]
[1748825155953,0.02842074,105550.0,105540.0,0.23614524]
[1748825156162,0.00947337,105550.0,105540.0,0.23614524]
[1748825156369,0.01894692,105550.0,105540.0,0.23614524]
[1748825156779,0.02842056,105550.0,105540.0,0.23614524]
[1748825157033,0.49806678,105560.0,105550.0,0.20843138]
[1748825157251,0.68753248,105560.0,105550.0,0.18948365]
[1748825157672,0.63608655,105560.0,105540.0,0.20836516]
[1748825157882,0.63608655,105560.0,105540.0,0.19889125]
[1748825157883,0.24103156,105550.0,105540.0,0.19889125]
[1748825158037,0.24103156,105550.0,105540.0,0.18941617]
[1748825158255,0.23155765,105550.0,105540.0,0.19889116]
[1748825159023,0.01894971,105540.0,105530.0,0.21782889]
[1748825159229,0.06337288,105540.0,105530.0,0.23033567]
[1748825159459,0.04737279,105540.0,105530.0,0.23916549]
[1748825159665,0.04737351,105540.0,105530.0,0.22086033]
[1748825159863,0.02842362,105540.0,105530.0,0.23916553]
[1748825160142,0.00947445,105540.0,105530.0,0.23916553]
[1748825160346,0.01894908,105540.0,105530.0,0.23921417]
[1748825160565,0.01894908,105540.0,105530.0,0.2303843]
[1748825160821,0.02842389,105540.0,105530.0,0.2303843]
[1748825161048,0.23965132,105540.0,105530.0,0.19056819]
[1748825161270,0.23965132,105540.0,105530.0,0.20951986]
[1748825161491,0.05962479,105540.0,105530.0,0.23047081]
[1748825161719,0.0596247,105540.0,105530.0,0.23930579]
[1748825161933,0.0596247,105540.0,105530.0,0.23047081]
[1748825162151,0.0596247,105540.0,105530.0,0.22099547]
[1748825162380,0.0596247,105540.0,105530.0,0.2304709]
[1748825162814,0.06909978,105540.0,105530.0,0.23931106]
[1748825163026,0.06909978,105540.0,105530.0,0.23047099]
[1748825163267,0.25860139,105540.0,105530.0,0.20204407]
[1748825163470,0.24912658,105540.0,105530.0,0.22983545]
[1748825163600,0.05954903,105540.0,105530.0,0.24878622]
[1748825164011,0.05954903,105540.0,105530.0,0.23931088]
[1748825164200,0.06902411,105540.0,105530.0,0.23931088]
[1748825164400,0.05954903,105540.0,105530.0,0.23931088]
[1748825164626,0.05954867,105540.0,105530.0,0.22983545]
[1748825164828,0.04354867,105540.0,105530.0,0.23931079]
[1748825165031,0.04354867,105540.0,105530.0,0.23047072]
[1748825165279,0.04354867,105540.0,105530.0,0.23930865]
[1748825165475,0.24835028,105540.0,105530.0,0.22035779]
[1748825165680,0.06832366,105540.0,105530.0,0.23930893]
[1748825166138,0.07779874,105540.0,105530.0,0.23930902]
[1748825166333,0.07779874,105540.0,105530.0,0.23047108]
[1748825166542,0.06832366,105540.0,105530.0,0.24878391]
[1748825166727,0.05884867,105540.0,105530.0,0.24878391]
[1748825166921,0.06832366,105540.0,105530.0,0.23930857]
[1748825167139,0.06832366,105540.0,105530.0,0.22983206]
[1748825167343,0.06832366,105540.0,105530.0,0.22983215]
[1748825167565,0.25782527,105540.0,105530.0,0.22983215]
[1748825167777,0.25782527,105540.0,105530.0,0.21151968]
[1748825167998,0.25782527,105540.0,105530.0,0.22099529]
[1748825168206,0.25782527,105540.0,105530.0,0.22983169]
[1748825168634,0.25782527,105540.0,105530.0,0.21088038]
[1748825168865,0.25782527,105540.0,105530.0,0.21151968]
[1748825169070,0.25782527,105540.0,105530.0,0.22035599]
[1748825169273,0.25782527,105540.0,105530.0,0.2298316]
[1748825169489,0.06832366,105540.0,105530.0,0.2298316]
[1748825169712,0.07779874,105540.0,105530.0,0.23930712]
[1748825170125,0.25782572,105540.0,105530.0,0.21151968]
[1748825170332,0.25782572,105540.0,105530.0,0.22983176]
[1748825170753,0.25782572,105540.0,105530.0,0.22983206]